bitfinex-derivatives/quotes_SOLF0:USTF0_20260207
["timestamp","ask_amount","ask_price","bid_price","bid_amount"]
[1770444169512,3.46087748,87.77,87.721,20.34878178]
[1770444170803,3.46087748,87.77,87.722,20.34878178]
[1770444174513,3.46087748,87.77,87.725,10.2663]
[1770444174708,3.46087748,87.77,87.726,20.34878178]
[1770444178507,3.46087748,87.77,87.729,20.34878178]
[1770444179306,18.87955558,87.78,87.731,20.34878178]
[1770444179617,22.34043306,87.78,87.731,20.34878178]
[1770444180605,3.46087748,87.8,87.746,20.34878178]
[1770444181209,3.46087748,87.8,87.758,20.34878178]
[1770444181415,18.58916633,87.806,87.758,20.34878178]
[1770444181611,18.63822696,87.82,87.761,20.34878178]
[1770444181805,18.63822696,87.82,87.704,20.5374]
[1770444181806,18.63387907,87.835,87.781,20.34878178]
[1770444182809,3.46087748,87.82,87.783,20.34878178]
[1770444183020,3.46087748,87.83,87.783,20.34878178]
[1770444183218,18.63387907,87.835,87.784,20.34878178]
[1770444184808,18.63387907,87.835,87.786,20.34878178]
[1770444185014,3.46087748,87.83,87.786,20.34878178]
[1770444185519,18.63387907,87.835,87.786,20.34878178]
[1770444186016,3.46087748,87.83,87.786,20.34878178]
[1770444186323,18.2063482,87.829,87.786,20.34878178]
[1770444186916,13.90707785,87.917,87.77,3.46087748]
[1770444186917,21.66382027,87.82,87.773,19.00545226]
[1770444187119,3.46087748,87.81,87.773,19.00545226]
[1770444189518,21.6645123,87.82,87.773,19.00545226]
[1770444190317,21.6645123,87.82,87.766,10.2614]
[1770444190318,3.46156951,87.86,87.801,20.56689807]
[1770444190716,21.67632857,87.86,87.801,20.56689807]
[1770444191018,3.46156951,87.83,87.787,20.56689807]
[1770444191427,18.2049255,87.848,87.787,20.56689807]
[1770444191618,3.46156951,87.86,87.801,20.56689807]
[1770444192021,3.46156951,87.86,87.81,20.56689807]
[1770444192423,3.46156951,87.84,87.81,20.56689807]
[1770444192921,3.46156951,87.85,87.81,20.56689807]
[1770444193622,21.66258902,87.86,87.81,20.56689807]
[1770444194819,3.46156951,87.83,87.792,20.56689807]
[1770444197727,3.46156951,87.8,87.748,20.56689807]
[1770444198721,3.46156951,87.8,87.752,10.2631]
[1770444198921,3.46156951,87.8,87.753,20.56689807]
[1770444199121,17.91070198,87.806,87.753,20.56689807]
[1770444200325,17.89129372,87.836,87.773,20.56689807]
[1770444200531,3.46156951,87.83,87.773,20.56689807]
[1770444200929,3.46156951,87.82,87.773,20.56689807]
[1770444201126,3.46156951,87.82,87.717,159.7115]
[1770444201127,3.46156951,87.78,87.738,20.56689807]
[1770444202023,21.59066838,87.78,87.738,20.56689807]
[1770444203425,18.12909887,87.78,87.738,20.56689807]
[1770444204131,17.4403541,87.806,87.738,20.56689807]
[1770444205130,17.43697444,87.803,87.738,20.56689807]
[1770444207429,17.8122527,87.828,87.751,20.56689807]
[1770444208726,17.8122527,87.828,87.766,20.56689807]
[1770444209929,17.8122527,87.828,87.775,20.56689807]
[1770444210229,17.86767537,87.814,87.735,20.56689807]
[1770444210437,17.86767537,87.809,87.735,20.56689807]
[1770444211136,17.86767537,87.809,87.744,20.56689807]
[1770444211837,17.86767537,87.809,87.747,20.56689807]
[1770444213224,17.86767537,87.809,87.751,20.56689807]
[1770444214730,17.86767537,87.809,87.754,10.2628]
[1770444214936,17.86767537,87.809,87.755,20.56689807]
[1770444220045,17.14753932,87.822,87.763,19.97266146]
[1770444220241,17.14759346,87.836,87.763,19.97266146]
[1770444220544,17.14759346,87.836,87.781,19.97266146]
[1770444222039,17.18309144,87.833,87.768,19.97266146]
[1770444222549,17.18309144,87.833,87.77,19.97266146]
[1770444223452,17.18309144,87.833,87.801,0.5]
[1770444225550,3.46053489,87.83,87.801,0.5]
[1770444228054,17.18309144,87.833,87.801,0.5]
[1770444228255,17.20701794,87.849,87.801,20.47266146]
[1770444229548,17.34387782,87.868,87.811,19.97266146]
[1770444230958,3.46053489,87.86,87.811,19.97266146]
[1770444231652,17.34387782,87.868,87.811,19.97266146]
[1770444231845,20.87368786,87.86,87.811,19.97266146]
[1770444233766,17.41315297,87.86,87.811,19.97266146]
[1770444234658,17.41315297,87.86,87.82,10.2551]
[1770444234860,17.41315297,87.86,87.82,30.22776146]
[1770444235056,20.87368786,87.86,87.803,19.97266146]
[1770444236360,16.55198024,87.839,87.801,0.5]
[1770444236566,3.46053489,87.82,87.782,30.23216146]
[1770444237067,16.05198024,87.821,87.782,30.23216146]
[1770444237263,16.3503954,87.834,87.79,19.97266146]
[1770444237469,16.3503954,87.849,87.79,23.43319635]
[1770444238763,16.3503954,87.849,87.804,19.97266146]
[1770444238966,3.46053489,87.86,87.804,19.97266146]
[1770444239967,3.46053489,87.86,87.81,19.97266146]
[1770444240861,16.34904475,87.864,87.814,19.97266146]
[1770444241261,3.46053489,87.88,87.821,19.97266146]
[1770444241868,16.89820777,87.881,87.82,3.46053489]
[1770444241869,16.89820777,87.881,87.84,10.2527]
[1770444242064,16.89820777,87.881,87.841,19.97266146]
[1770444243864,16.88482361,87.899,87.843,19.97266146]
[1770444244762,3.46053489,87.91,87.859,19.97266146]
[1770444245560,3.46053489,87.91,87.872,10.249]
[1770444245760,16.88417368,87.914,87.872,10.249]
[1770444246164,16.69409401,87.929,87.873,20.07618061]
[1770444246467,3.46053489,87.92,87.88,10.2481]
[1770444247167,3.45317493,87.92,87.88,10.2481]
[1770444247469,3.45317493,87.91,87.852,10.2513]
[1770444247671,3.45317493,87.9,87.842,20.07618061]
[1770444248169,20.19788803,87.9,87.842,20.07618061]
[1770444248358,16.7447131,87.9,87.842,20.07618061]
[1770444249373,20.1994163,87.9,87.842,20.07618061]
[1770444249870,20.1994163,87.9,87.861,10.2504]
[1770444250373,16.7447131,87.9,87.864,10.25]
[1770444251066,10.2414,87.938,87.79,20.5173]
[1770444251067,16.69424059,87.918,87.867,19.75318146]
[1770444251673,16.69424059,87.918,87.757,34.2]
[1770444251674,3.4547032,87.93,87.874,19.75318146]
[1770444252576,20.12491302,87.93,87.87,3.4547032]
[1770444252775,16.67020982,87.944,87.891,19.75318146]
[1770444253664,16.67020982,87.944,87.897,10.2461]
[1770444254170,16.67020982,87.944,87.898,19.75318146]
[1770444254370,16.36557613,87.959,87.898,19.75318146]
[1770444254672,16.36557613,87.959,87.901,19.75318146]
[1770444255079,16.36492471,87.949,87.907,10.2449]
[1770444255676,16.36492471,87.949,87.91,10.2446]
[1770444256568,10.2369,87.978,87.91,29.99778146]
[1770444256775,34.2,88.019,87.86,8.62717138]
[1770444256776,16.687385,87.977,87.918,19.75318146]
[1770444257171,16.687385,87.977,87.922,19.75318146]
[1770444259082,16.687385,87.977,87.921,10.2433]
[1770444259380,16.687385,87.977,87.91,10.2446]
[1770444260078,16.687385,87.977,87.91,29.99778146]
[1770444260477,16.80097263,87.97,87.91,19.75318146]
[1770444261782,16.73379971,87.968,87.91,19.75318146]
[1770444262079,16.73379971,87.959,87.884,10.2476]
[1770444262472,16.73381505,87.944,87.885,19.75318146]
[1770444262671,16.73381505,87.944,87.899,10.2459]
[1770444264382,16.73381505,87.944,87.89,19.75318146]
[1770444265086,16.73381505,87.944,87.894,19.75318146]
[1770444266683,16.73381505,87.944,87.897,19.75318146]
[1770444266887,16.66981147,87.966,87.897,19.75318146]
[1770444267384,16.66981147,87.966,87.9,19.75318146]
[1770444268287,16.66981147,87.966,87.905,19.75318146]
[1770444268683,15.72826359,87.999,87.905,19.75318146]
[1770444268889,15.72826359,87.999,87.932,19.75318146]
[1770444269788,16.02069496,87.997,87.932,19.75318146]
[1770444269987,16.02069496,87.997,87.934,10.2418]
[1770444270181,16.02069496,87.997,87.935,19.75318146]
[1770444270487,16.0207267,87.995,87.881,19.75318146]
[1770444271378,16.0207267,87.995,87.927,19.75318146]
[1770444272781,16.40826397,87.993,87.932,10.2421]
[1770444272976,16.40826397,87.993,87.932,29.99528146]
[1770444273183,16.40826397,87.993,87.933,19.75318146]
[1770444273385,16.40826397,87.993,87.934,10.2418]
[1770444274386,16.40826397,87.993,87.937,19.75318146]
[1770444274889,16.30563725,87.99,87.915,19.75318146]
[1770444276479,16.30563725,87.99,87.927,19.00216162]
[1770444277485,3.45011997,87.96,87.927,19.00216162]
[1770444277685,19.69761434,87.97,87.927,19.00216162]
[1770444277886,3.45011997,87.98,87.927,19.00216162]
[1770444279388,3.45011997,87.98,87.929,19.00216162]
[1770444279587,3.45011997,87.97,87.929,19.00216162]
[1770444280693,20.40750214,87.98,87.934,19.00216162]
[1770444282095,20.40750214,87.98,87.935,10.2417]
[1770444282391,20.40750214,87.98,87.935,29.24386162]
[1770444282599,20.40750214,87.98,87.936,19.00216162]
[1770444283292,20.40750214,87.98,87.94,10.2411]
[1770444283499,20.40750214,87.98,87.941,19.00216162]
[1770444284498,20.40750214,87.98,87.942,10.2409]
[1770444285099,3.45011997,87.96,87.923,19.00216162]
[1770444286203,16.78782077,87.968,87.923,19.00216162]
[1770444286509,3.45011997,87.96,87.923,19.00216162]
[1770444287308,3.45011997,87.98,87.927,19.00216162]
[1770444288704,3.45011997,87.98,87.933,19.00216162]
[1770444288904,16.29164426,87.982,87.933,19.00216162]
[1770444289105,3.45011997,87.98,87.933,19.00216162]
[1770444291302,3.45011997,87.98,87.935,19.00216162]
[1770444291898,3.45011997,87.98,87.937,10.2414]
[1770444292107,3.45011997,87.98,87.938,19.00216162]
[1770444292604,16.29164426,87.982,87.945,19.00216162]
[1770444293309,16.29164426,87.982,87.946,10.2404]
[1770444295313,3.45011997,87.98,87.946,10.2404]
[1770444295906,10.2336,88.006,87.947,19.00216162]
[1770444296110,3.45011997,87.99,87.952,19.00216162]
[1770444297411,20.19158969,87.99,87.952,19.00216162]
[1770444298113,20.19158969,87.99,87.953,10.2396]
[1770444299313,20.19158969,87.99,87.953,29.24176162]
[1770444299513,16.74146972,87.99,87.953,29.24176162]
[1770444300413,3.45011997,87.98,87.944,19.00216162]
[1770444300616,3.45011997,87.97,87.944,19.00216162]
[1770444300808,3.45011997,87.97,87.911,19.00216162]
[1770444301208,3.45011997,87.97,87.92,19.00216162]
[1770444302204,3.45011997,87.97,87.923,10.243]
[1770444302411,3.45011997,87.99,87.931,19.00216162]
[1770444303707,16.81964421,88.007,87.951,19.00216162]
[1770444304515,16.81964421,88.007,87.94,3.45011997]
[1770444304516,3.45011997,88.01,87.958,19.00216162]
[1770444305019,20.26954201,88.01,87.958,19.00216162]
[1770444305811,20.26954201,88.01,87.96,18.98194481]
[1770444306013,17.21140075,88.035,87.971,18.98194481]
[1770444306311,20.6613316,88.03,87.971,18.98194481]
[1770444306509,3.45011997,88.02,87.971,18.98194481]
[1770444306912,20.6613316,88.03,87.971,18.98194481]
[1770444307114,3.45011997,88.04,87.985,18.98194481]
[1770444307715,3.45011997,88.04,87.994,18.98194481]
[1770444308919,3.45011997,88.06,88.011,19.5524656]
[1770444309118,3.45011997,88.05,88.011,19.5524656]
[1770444309521,17.09136935,88.072,88.011,19.5524656]
[1770444310719,17.09136935,88.072,88.012,19.5524656]
[1770444312521,17.09136935,88.072,87.931,48.61150073]
[1770444312522,16.69396407,88.059,87.999,10.2342]
[1770444312729,16.69396407,88.059,87.998,19.5524656]
[1770444313823,16.69396407,88.059,88.0,19.5524656]
[1770444314734,16.82442642,88.039,87.932,19.5524656]
[1770444315530,16.65247549,88.019,87.958,19.5524656]
[1770444316629,16.65238753,88.01,87.934,19.5524656]
[1770444317729,16.46789835,88.004,87.936,19.5524656]
[1770444318230,8.60652933,88.02,87.936,19.5524656]
[1770444318231,16.46789961,87.991,87.936,19.5524656]
[1770444319527,10.2354,87.99,87.936,19.5524656]
[1770444319734,16.51974269,87.989,87.936,19.5524656]
[1770444321329,26.89244179,87.988,87.936,19.5524656]
[1770444321531,16.65684179,87.988,87.936,19.5524656]
[1770444322635,8.60652933,88.0,87.936,19.5524656]
[1770444322927,16.65688297,87.999,87.936,19.5524656]
[1770444323533,16.65688297,87.999,87.938,19.5524656]
[1770444324434,16.58740098,87.996,87.938,19.5524656]
[1770444325036,16.58738365,87.994,87.938,19.5524656]
[1770444326731,16.58738365,87.994,87.943,19.5524656]
[1770444327732,34.2,88.043,87.947,19.5524656]
[1770444327733,16.84051063,88.007,87.947,19.5524656]
[1770444328431,16.84051122,88.027,87.95,19.5524656]
[1770444328630,16.84051122,88.019,87.95,19.5524656]
[1770444329433,3.44780712,87.99,87.95,19.5524656]
[1770444329634,3.44780712,87.99,87.958,19.5524656]
[1770444329840,3.44780712,87.98,87.958,19.5524656]
[1770444330238,3.44780712,87.99,87.958,19.5524656]
[1770444330434,3.44780712,88.0,87.958,19.5524656]
[1770444331034,3.44780712,88.01,87.961,19.5524656]
[1770444331242,3.44780712,88.0,87.961,19.5524656]
[1770444331442,3.44780712,87.99,87.961,19.5524656]
[1770444332341,3.44780712,87.98,87.961,19.5524656]
[1770444332538,3.44780712,87.97,87.91,3.44780712]
[1770444332743,3.44780712,87.97,87.9,3.44780712]
[1770444332936,3.44780712,87.98,87.931,10.2422]
[1770444333145,3.44780712,87.97,87.931,10.2422]
[1770444333443,3.44780712,87.96,87.9,3.44780712]
[1770444334045,3.44780712,87.97,87.9,3.44780712]
[1770444334443,3.44780712,87.97,87.876,20.4972]
[1770444334444,3.44780712,87.97,87.911,19.5524656]
[1770444334740,22.53805632,87.98,87.921,19.5524656]
[1770444334942,3.44780712,87.96,87.921,19.5524656]
[1770444335940,3.44780712,87.99,87.921,19.5524656]
[1770444336147,3.44780712,87.99,87.931,19.47461777]
[1770444336344,19.13611381,87.993,87.931,19.47461777]
[1770444336345,3.44780712,87.98,87.931,19.47461777]
[1770444336739,3.44780712,87.99,87.931,19.47461777]
[1770444337845,3.44780712,87.99,87.943,19.47461777]
[1770444339550,3.44780712,87.99,87.946,19.47461777]
[1770444340244,3.44780712,87.99,87.949,19.47461777]
[1770444340446,3.44780712,88.0,87.949,19.47461777]
[1770444341045,3.44780712,87.99,87.949,19.47461777]
[1770444341844,3.44780712,87.99,87.953,19.47461777]
[1770444342149,3.44780712,88.0,87.953,19.47461777]
[1770444342546,3.44780712,87.99,87.953,19.47461777]
[1770444342750,3.44780712,87.99,87.954,29.71411777]
[1770444342947,3.44780712,87.99,87.955,19.47461777]
[1770444343353,3.44780712,87.98,87.955,19.47461777]
[1770444343852,3.44780712,88.01,87.955,19.47461777]
[1770444344743,3.44780712,87.99,87.956,19.47461777]
[1770444346150,3.44780712,88.0,87.956,19.47461777]
[1770444346450,22.58392093,88.01,87.956,19.47461777]
[1770444347448,3.44780712,88.0,87.956,19.47461777]
[1770444347754,3.44780712,88.0,87.958,19.47461777]
[1770444348248,3.44780712,87.99,87.958,19.47461777]
[1770444349053,3.44780712,88.0,87.958,19.47461777]
[1770444349441,3.44780712,88.0,87.96,19.47461777]
[1770444350755,22.58392093,88.01,87.962,19.47461777]
[1770444352349,22.58392093,88.01,87.964,19.47461777]
[1770444353556,22.58392093,88.01,87.966,19.47461777]
[1770444354863,22.58392093,88.01,87.968,19.47461777]
[1770444355447,22.58392093,88.01,87.971,10.2374]
[1770444355847,22.58392093,88.01,87.968,19.47461777]
[1770444355848,3.44780712,88.0,87.968,19.47461777]
[1770444356556,22.58392093,88.01,87.968,19.47461777]
[1770444358959,3.44780712,88.0,87.968,19.47461777]
[1770444359551,3.44780712,88.0,87.961,19.47461777]
[1770444359958,22.58392093,88.0,87.961,19.47461777]
[1770444362455,9.10720436,88.055,87.902,179.8665]
[1770444362456,22.58392093,87.99,87.947,19.47461777]
[1770444362648,3.44780712,87.96,87.911,19.47461777]
[1770444362844,19.13611381,87.97,87.932,10.242]
[1770444363048,3.44780712,87.97,87.933,19.47461777]
[1770444366053,22.58392093,87.98,87.933,19.47461777]
[1770444368550,19.13611381,87.98,87.936,19.68911103]
[1770444369757,22.58392093,87.98,87.939,21.07783641]
[1770444370363,19.13611381,87.98,87.939,21.07783641]
[1770444370753,19.13611381,87.98,87.942,21.07783641]
[1770444371663,3.44827849,87.99,87.945,21.07783641]
[1770444372863,3.44827849,87.99,87.947,21.07783641]
[1770444373168,19.33351993,88.014,87.947,21.07783641]
[1770444373363,3.44827849,88.0,87.947,21.07783641]
[1770444374562,19.33351993,88.003,87.958,10.239]
[1770444374762,19.33351993,88.003,87.959,21.07783641]
[1770444375869,19.33351993,88.003,87.963,10.2385]
[1770444376072,19.33351993,87.999,87.959,21.07783641]
[1770444376565,19.33351993,87.999,87.96,10.2388]
[1770444376758,19.33351993,87.999,87.961,21.07783641]
[1770444377562,19.33351993,88.024,87.961,21.07783641]
[1770444377763,22.78179842,88.01,87.964,21.07783641]
[1770444380167,10.2313,88.025,87.969,10.2377]
[1770444380368,3.44827849,88.02,87.97,21.07783641]
[1770444381774,3.44827849,88.02,87.972,21.07783641]
[1770444382269,19.33351993,88.026,87.972,21.07783641]
[1770444382772,3.44827849,88.02,87.972,21.07783641]
[1770444383675,3.44827849,88.02,87.984,10.236]
[1770444383874,19.33351993,88.026,87.985,21.07783641]
[1770444385176,19.33351993,88.055,87.991,21.07783641]
[1770444385372,22.78179842,88.05,87.991,21.07783641]
[1770444385976,3.44827849,88.04,88.005,31.31143641]
[1770444386566,3.44827849,88.04,88.005,21.07783641]
[1770444387175,3.44827849,88.03,87.994,21.07783641]
[1770444388576,19.33351993,88.049,87.997,21.07783641]
[1770444388972,3.44827849,88.04,87.997,21.07783641]
[1770444389782,3.44827849,88.04,87.99,3.44827849]
[1770444389783,3.44827849,88.04,88.0,21.07783641]
[1770444390980,22.78179842,88.04,88.0,21.07783641]
[1770444391171,3.44827849,88.03,88.0,21.07783641]
[1770444391884,22.78179842,88.04,88.0,21.07783641]
[1770444392083,19.33351993,88.04,88.0,21.07783641]
[1770444392472,22.78179842,88.04,88.0,21.07783641]
[1770444392670,19.33351993,88.06,88.0,21.07783641]
[1770444392982,22.78179842,88.06,88.0,21.07783641]
[1770444393177,3.44827849,88.05,88.0,21.07783641]
[1770444393778,22.78179842,88.05,88.002,21.07783641]
[1770444394181,3.44827849,88.06,88.002,21.07783641]
[1770444394379,22.78179842,88.06,88.014,21.07783641]
[1770444395778,22.78179842,88.06,88.019,20.5067664]
[1770444395979,3.44827849,88.07,88.019,20.5067664]
[1770444396380,21.41796943,88.069,88.019,20.5067664]
[1770444397688,3.44827849,88.06,88.019,20.5067664]
[1770444400887,24.86624792,88.06,88.019,20.5067664]
[1770444401685,3.44827849,88.05,88.019,20.5067664]
[1770444402692,24.86624792,88.06,88.019,20.5067664]
[1770444402887,21.41796943,88.06,88.019,20.5067664]
[1770444403081,24.86624792,88.06,88.019,20.5067664]
[1770444403280,24.86624792,88.06,88.007,20.5067664]
[1770444403687,24.86624792,88.06,88.02,10.2319]
[1770444405596,3.44827849,88.05,88.008,20.5067664]
[1770444405987,24.86624792,88.06,88.008,20.5067664]
[1770444407596,3.44827849,88.05,88.01,20.5067664]
[1770444407789,24.86624792,88.06,88.01,20.5067664]
[1770444408691,24.86624792,88.06,88.012,20.5067664]
[1770444410596,21.41796943,88.06,88.012,20.5067664]
[1770444410795,21.41796943,88.06,88.022,10.2316]
[1770444410995,21.41796943,88.06,88.022,30.7383664]
[1770444411696,24.86624792,88.07,88.023,20.5067664]
[1770444414992,21.41796943,88.07,88.028,10.2309]
[1770444415199,21.41796943,88.089,88.029,20.5067664]
[1770444415385,3.44827849,88.07,88.029,20.5067664]
[1770444415585,24.86624792,88.07,88.029,20.5067664]
[1770444415786,3.44827849,88.06,88.029,20.5067664]
[1770444417291,24.86624792,88.06,88.016,20.5067664]
[1770444419298,21.41796943,88.06,88.02,20.5067664]
[1770444420397,21.41796943,88.071,88.022,20.5067664]
[1770444420904,21.41796943,88.069,88.022,20.5067664]
[1770444421800,21.41796943,88.069,88.024,20.5067664]
[1770444422397,21.41796943,88.069,88.025,10.2313]
[1770444422604,21.41796943,88.069,87.959,28.12720073]
[1770444422605,21.41796943,88.093,88.031,20.5067664]
[1770444422795,21.41796943,88.093,88.041,20.5067664]
[1770444422995,3.44827849,88.09,88.041,20.5067664]
[1770444423191,3.44827849,88.08,88.041,20.5067664]
[1770444423399,3.44827849,88.07,88.028,20.5067664]
[1770444423600,24.86624792,88.07,88.028,20.5067664]
[1770444423995,21.41796943,88.07,88.028,20.5067664]
[1770444424403,24.86624792,88.07,88.028,20.5067664]
[1770444424604,21.41796943,88.07,88.028,20.5067664]
[1770444425608,21.41796943,88.083,88.03,20.5067664]
[1770444425803,20.26770282,88.109,88.051,19.92112336]
[1770444426105,20.26770282,88.122,88.077,10.2252]
[1770444426310,3.44827849,88.13,88.078,19.92112336]
[1770444426499,20.26770282,88.135,88.081,19.92112336]
[1770444427603,20.26770282,88.15,88.091,19.92112336]
[1770444427809,20.26770282,88.15,88.101,19.92112336]
[1770444428007,20.26770282,88.164,88.121,10.2201]
[1770444428209,20.26770282,88.178,88.122,19.92112336]
[1770444428996,20.26770282,88.178,88.128,21.31140565]
[1770444429207,7.016e-05,88.162,88.131,21.31140565]
[1770444430004,7.016e-05,88.162,88.131,31.53030565]
[1770444430209,7.016e-05,88.162,88.116,21.31140565]
[1770444430414,3.44827849,88.16,88.116,21.31140565]
[1770444431000,7.016e-05,88.162,88.121,21.31140565]
[1770444432423,7.016e-05,88.162,88.107,21.31140565]
[1770444432606,7.016e-05,88.162,88.131,21.31140565]
[1770444433812,7.016e-05,88.162,88.132,10.2188]
[1770444436220,7.016e-05,88.162,88.132,31.53020565]
[1770444437618,3.43257431,88.16,88.091,21.31140565]
[1770444437917,7.016e-05,88.162,88.121,21.31140565]
[1770444438712,7.016e-05,88.162,88.125,10.2196]
[1770444438919,7.016e-05,88.162,88.126,21.31140565]
[1770444440116,7.016e-05,88.162,88.141,21.31140565]
[1770444441215,7.016e-05,88.162,88.157,31.52730565]
[1770444441622,3.43257431,88.21,88.158,21.31140565]
[1770444441823,20.01464469,88.234,88.181,21.31140565]
[1770444442023,3.43257431,88.21,88.181,21.31140565]
[1770444442223,3.43257431,88.24,88.171,21.31140565]
[1770444442422,13.97589729,88.334,88.108,20.4432]
[1770444442423,3.43257431,88.22,88.185,21.31140565]
[1770444442625,3.43257431,88.2,88.161,21.31140565]
[1770444442919,23.447219,88.22,88.168,10.2147]
[1770444443127,3.43257431,88.2,88.161,21.31140565]
[1770444443918,3.43257431,88.2,88.145,21.31140565]
[1770444444127,3.43257431,88.18,88.145,21.31140565]
[1770444445015,3.43257431,88.18,88.12,3.43257431]
[1770444445016,3.43257431,88.17,88.128,31.53070565]
[1770444445216,3.43257431,88.17,88.129,21.31140565]
[1770444445628,1.97362265,88.244,88.129,21.31140565]
[1770444445629,3.43257431,88.16,88.129,21.31140565]
[1770444445918,3.43257431,88.15,88.119,10.2204]
[1770444446114,3.43257431,88.15,88.113,21.31140565]
[1770444446516,3.43257431,88.14,88.091,21.31140565]
[1770444446717,3.43257431,88.13,88.091,21.31140565]
[1770444447419,3.43257431,88.12,88.085,10.2243]
[1770444447628,3.43257431,88.12,88.075,21.31140565]
[1770444448017,3.43257431,88.13,88.081,21.31140565]
[1770444448225,3.43257431,88.14,88.081,21.31140565]
[1770444449017,20.01464469,88.147,88.085,21.31140565]
[1770444449224,20.01464469,88.147,88.091,21.31140565]
[1770444449630,20.01464469,88.147,88.096,10.223]
[1770444449821,20.01464469,88.147,88.096,31.53440565]
[1770444451124,3.43257431,88.14,88.096,31.53440565]
[1770444451525,3.43257431,88.16,88.101,21.31140565]
[1770444452734,3.43257431,88.16,88.101,31.53380565]
[1770444453033,3.43257431,88.16,88.102,21.31140565]
[1770444453633,3.43257431,88.17,88.117,21.31140565]
[1770444454022,3.43257431,88.18,88.12,3.43257431]
[1770444454235,3.43257431,88.18,88.121,21.31140565]
[1770444455325,36.17362265,88.244,88.106,21.31140565]
[1770444455326,3.43257431,88.15,88.106,21.31140565]
[1770444455728,3.43257431,88.14,88.09,20.3832027]
[1770444456037,3.43257431,88.13,88.09,20.3832027]
[1770444456623,3.43257431,88.14,88.092,20.3832027]
[1770444457033,19.97269275,88.145,88.092,20.3832027]
[1770444457337,3.43257431,88.14,88.095,30.6062027]
[1770444458039,3.43257431,88.13,88.095,20.3832027]
[1770444458540,3.43257431,88.14,88.095,20.3832027]
[1770444458933,3.43257431,88.14,88.095,30.6062027]
[1770444459137,3.43257431,88.14,88.08,3.43257431]
[1770444459138,3.43257431,88.15,88.096,20.3832027]
[1770444459337,3.43257431,88.16,88.101,20.3832027]
[1770444459535,3.43257431,88.18,88.121,20.3832027]
[1770444459941,3.43257431,88.18,88.129,20.3832027]
[1770444460441,3.43257431,88.18,88.14,10.2179]
[1770444461249,19.97269275,88.184,88.14,10.2179]
[1770444462540,19.97269275,88.184,88.13,10.2191]
[1770444469048,19.97269275,88.184,88.131,20.3832027]
[1770444470141,19.97269275,88.184,88.134,10.2185]
[1770444470942,19.97269275,88.184,88.135,20.3832027]
[1770444473443,19.97269275,88.184,88.123,10.2198]
[1770444473649,19.97269275,88.184,88.113,10.221]
[1770444473854,19.97269275,88.182,88.109,20.3832027]
[1770444474057,19.97269275,88.169,88.109,20.3832027]
[1770444474849,19.97269275,88.168,88.109,20.3832027]
[1770444479153,19.97269275,88.166,88.109,20.3832027]
[1770444480358,19.97269275,88.163,88.092,20.3832027]
[1770444480566,19.97269275,88.149,88.092,20.3832027]
[1770444481153,19.97269275,88.149,88.096,20.3832027]
[1770444482168,19.97269275,88.166,88.108,20.3832027]
[1770444482468,19.97269275,88.163,88.063,20.3832027]
[1770444483064,19.97269275,88.149,88.087,20.3832027]
[1770444483452,3.43662658,88.13,88.087,20.3832027]
[1770444483657,3.43662658,88.14,88.088,20.3832027]
[1770444485964,19.97269275,88.149,88.08,3.43662658]
[1770444485965,19.97269275,88.149,88.09,21.45351508]
[1770444486168,3.43662658,88.13,88.09,21.45351508]
[1770444487166,3.43662658,88.14,88.09,21.45351508]
[1770444487560,25.51797916,88.13,88.09,21.45351508]
[1770444487871,3.43662658,88.12,88.09,21.45351508]
[1770444489265,3.43662658,88.12,88.076,21.0969808]
[1770444489464,1.97521334,88.174,88.064,10.2267]
[1770444489465,3.43662658,88.1,88.064,10.2267]
[1770444490955,21.64629131,88.11,88.062,21.0969808]
[1770444490956,3.43662658,88.09,88.062,21.0969808]
[1770444491160,3.43662658,88.09,88.049,21.0969808]
[1770444494073,3.43662658,88.08,88.049,21.0969808]
[1770444495362,3.43984683,88.09,88.049,21.0969808]
[1770444495565,21.64629131,88.098,88.049,21.0969808]
[1770444496664,3.43984683,88.1,88.049,21.0969808]
[1770444496865,3.43984683,88.1,88.054,21.0969808]
[1770444497264,21.64629131,88.111,88.062,21.0969808]
[1770444497463,25.08613814,88.11,88.062,21.0969808]
[1770444499171,25.08613814,88.11,88.065,21.0969808]
[1770444500873,3.43984683,88.1,88.067,10.2263]
[1770444501470,25.08613814,88.11,88.067,10.2263]
[1770444501775,25.08613814,88.11,88.067,31.3232808]
[1770444502472,3.43984683,88.12,88.071,21.0969808]
[1770444502976,3.43984683,88.13,88.071,21.0969808]
[1770444503171,3.43984683,88.13,88.075,21.0969808]
[1770444503376,25.08613814,88.13,88.075,21.0969808]
[1770444504075,21.64629131,88.143,88.093,21.0969808]
[1770444504278,25.08613814,88.14,88.093,21.0969808]
[1770444504475,3.43984683,88.12,88.093,21.0969808]
[1770444505578,25.08613814,88.13,88.093,21.0969808]
[1770444506472,3.43984683,88.12,88.079,21.0969808]
[1770444506878,25.08613814,88.13,88.079,21.0969808]
[1770444507074,3.43984683,88.13,88.079,21.0969808]
[1770444507377,3.43984683,88.09,88.047,21.0969808]
[1770444507979,3.43984683,88.1,88.047,21.0969808]
[1770444508573,3.43984683,88.1,88.049,21.0969808]